bitfinex/quotes_SOLUSD_20260120
["timestamp","ask_amount","ask_price","bid_price","bid_amount"]
[1768950215735,0.03778647,125.95,125.87,4.19533921]
[1768950215736,11.5711048,125.93,125.87,4.19533921]
[1768950215941,11.5711048,125.93,125.87,11.98779643]
[1768950216935,11.5711048,125.92,125.87,4.19533921]
[1768950217135,11.5711048,125.89,125.84,11.98779643]
[1768950217341,11.5711048,125.91,125.86,11.98779643]
[1768950217654,11.5711048,125.91,125.86,4.19533921]
[1768950217845,11.5711048,125.9,125.85,7.79245722]
[1768950218026,11.5711048,125.9,125.84,19.93438818]
[1768950218229,7.79245722,125.89,125.84,11.98779643]
[1768950218427,7.79245722,125.88,125.84,4.19533921]
[1768950218628,11.5711048,125.88,125.82,19.93542246]
[1768950218828,7.79245722,125.87,125.83,4.19533921]
[1768950219068,27.79768335,125.91,125.81,4.19533921]
[1768950219069,11.5711048,125.86,125.81,4.19533921]
[1768950219640,11.5711048,125.85,125.79,12.24480725]
[1768950219841,11.5711048,125.85,125.8,11.98779643]
[1768950220051,7.79245722,125.86,125.81,4.19533921]
[1768950220344,11.5711048,125.86,125.81,4.19533921]
[1768950220545,7.94499625,125.87,125.81,4.19533921]
[1768950220546,7.79245722,125.87,125.82,11.98779643]
[1768950220751,28.9711048,125.88,125.83,11.98779643]
[1768950220933,11.5711048,125.89,125.83,11.98779643]
[1768950221340,11.5711048,125.88,125.83,11.98779643]
[1768950221535,11.5711048,125.87,125.81,11.98779643]
[1768950221735,11.72398366,125.86,125.81,11.98779643]
[1768950222143,19.51644088,125.86,125.81,11.98779643]
[1768950222341,3.77864758,125.85,125.79,12.24485998]
[1768950222548,3.77864758,125.83,125.79,0.1]
[1768950222734,3.77864758,125.83,125.79,7.89245722]
[1768950223135,11.5711048,125.85,125.8,11.98779643]
[1768950223353,21.17864758,125.87,125.82,11.98779643]
[1768950223937,28.9711048,125.87,125.82,11.98779643]
[1768950224252,11.5711048,125.86,125.8,7.94884318]
[1768950224441,3.77864758,125.86,125.82,7.79245722]
[1768950224643,3.77864758,125.86,125.8,7.94884318]
[1768950224644,3.77864758,125.88,125.83,12.12173062]
[1768950224844,21.17864758,125.88,125.83,12.12173062]
[1768950225049,21.17864758,125.88,125.84,7.79245722]
[1768950225247,19.51408027,125.9,125.85,11.9400861]
[1768950225850,3.77864758,125.88,125.84,7.79245722]
[1768950226032,3.77864758,125.88,125.83,4.14762888]
[1768950226230,3.77864758,125.88,125.83,11.9400861]
[1768950226444,3.77864758,125.89,125.83,7.79245722]
[1768950226648,33.13543269,125.9,125.85,11.9400861]
[1768950226933,10.13910037,125.89,125.83,14.28672925]
[1768950227153,13.91774795,125.87,125.82,10.13910037]
[1768950227452,10.13910037,125.83,125.79,0.1]
[1768950228850,10.13910037,125.82,125.79,0.1]
[1768950229561,18.08656361,125.83,125.79,0.1]
[1768950229849,35.48572852,125.84,125.79,10.23910037]
[1768950230251,35.48572852,125.84,125.79,0.1]
[1768950230444,10.13910037,125.83,125.79,0.1]
[1768950230650,7.94618341,125.85,125.8,14.28672925]
[1768950230848,18.08528378,125.85,125.8,14.28672925]
[1768950231156,7.94618341,125.85,125.8,14.28672925]
[1768950232064,7.94618341,125.85,125.8,14.28672925]
[1768950232433,17.4,125.87,125.82,14.28672925]
[1768950232644,27.53910037,125.87,125.82,14.28672925]
[1768950233058,27.53910037,125.87,125.82,4.14762888]
[1768950233554,18.08317409,125.88,125.83,14.28672925]
[1768950234355,18.08317409,125.88,125.81,7.94822681]
[1768950234356,10.13910037,125.87,125.82,10.13910037]
[1768950234557,10.13910037,125.87,125.82,4.14762888]
[1768950235236,10.13910037,125.87,125.81,14.28672925]
[1768950235441,10.13910037,125.87,125.81,4.14762888]
[1768950235760,10.13910037,125.87,125.82,4.14762888]
[1768950235957,27.80425802,125.88,125.82,4.14762888]
[1768950236150,10.13910037,125.87,125.82,14.28672925]
[1768950236351,27.80425802,125.88,125.8,7.94882426]
[1768950236352,17.4,125.88,125.84,4.14762888]
[1768950236553,27.53910037,125.88,125.83,10.13910037]
[1768950237057,27.53910037,125.88,125.82,14.28672925]
[1768950237642,27.53910037,125.88,125.83,4.14762888]
[1768950237844,27.53910037,125.88,125.83,14.28672925]
[1768950238042,17.4,125.88,125.84,4.14762888]
[1768950238245,27.53910037,125.88,125.82,22.23456232]
[1768950238468,35.48341722,125.88,125.83,4.14762888]
[1768950240065,35.48341722,125.88,125.79,4.24762888]
[1768950240066,10.13910037,125.86,125.79,4.24762888]
[1768950240251,10.13910037,125.86,125.81,10.13910037]
[1768950240456,7.94385503,125.89,125.85,4.14762888]
[1768950240763,25.34385503,125.89,125.84,14.28672925]
[1768950241148,35.4829554,125.89,125.84,14.28672925]
[1768950241347,7.94385503,125.89,125.85,4.14762888]
[1768950241569,18.08147992,125.91,125.87,4.14762888]
[1768950241773,7.94237955,125.91,125.87,4.14762888]
[1768950242066,10.13910037,125.9,125.85,14.28672925]
[1768950242265,10.13910037,125.9,125.85,4.14762888]
[1768950242457,7.94344268,125.89,125.85,4.14762888]
[1768950242656,18.08254305,125.89,125.83,14.28672925]
[1768950242859,10.13910037,125.88,125.82,14.28672925]
[1768950243167,10.13910037,125.88,125.83,14.28672925]
[1768950243464,27.53910037,125.9,125.86,4.14762888]
[1768950243669,27.53910037,125.9,125.84,14.28672925]
[1768950243881,10.13910037,125.88,125.83,10.13910037]
[1768950244053,10.13910037,125.89,125.83,14.28672925]
[1768950244371,10.13910037,125.89,125.84,14.28672925]
[1768950244755,25.19954086,125.91,125.84,14.28672925]
[1768950244947,10.13910037,125.86,125.79,4.24762888]
[1768950245255,5.9565132,125.89,125.81,4.14762888]
[1768950245471,27.53910037,125.88,125.82,14.28672925]
[1768950245655,7.94247704,125.91,125.85,4.14762888]
[1768950245853,35.48157741,125.91,125.86,4.14762888]
[1768950246362,35.48079656,125.92,125.87,4.14762888]
[1768950246769,10.13910037,125.91,125.87,4.14762888]
[1768950246961,18.08146912,125.91,125.87,4.14762888]
[1768950247155,7.94236875,125.91,125.87,4.14762888]
[1768950248047,18.08146912,125.91,125.86,4.14762888]
[1768950248253,10.13910037,125.9,125.86,4.14762888]
[1768950248978,35.48086904,125.92,125.87,4.14762888]
[1768950249679,10.13910037,125.93,125.88,4.14762888]
[1768950249881,19.84862417,125.96,125.88,4.14762888]
[1768950249882,10.13910037,125.94,125.89,4.14762888]
[1768950250379,10.13910037,125.94,125.89,14.28672925]
[1768950250785,111.63891053,125.97,125.92,4.14762888]
[1768950250988,12.44687571,126.0,125.95,4.14762888]
[1768950250989,7.93650793,126.0,125.95,4.14762888]
[1768950251177,8.13616005,126.01,125.95,10.13910037]
[1768950251477,8.13616005,126.01,125.9,17.4]
[1768950251478,10.13910037,125.99,125.9,17.4]
[1768950251687,10.13910037,125.99,125.93,10.13910037]
[1768950251983,10.16880034,125.98,125.91,7.94194866]
[1768950252188,10.16880034,125.98,125.92,10.13910037]
[1768950252491,10.16880034,125.97,125.91,10.13910037]
[1768950253059,10.16880034,125.97,125.92,14.28672925]
[1768950253376,25.33811905,125.98,125.93,14.28672925]
[1768950253582,35.47721942,125.98,125.93,4.14762888]
[1768950253885,18.07721942,125.98,125.93,4.14762888]
[1768950254088,10.13910037,125.97,125.93,4.14762888]
[1768950255072,10.13910037,125.96,125.91,4.37987442]
[1768950255391,18.10776677,125.97,125.92,4.37987442]
[1768950256100,18.07710537,125.98,125.93,4.37987442]
[1768950256263,17.4,125.99,125.95,4.37987442]
[1768950256587,25.33733077,125.99,125.95,4.37987442]
[1768950256774,35.47643114,125.99,125.95,4.37987442]
[1768950256976,0.2,126.01,125.96,4.37987442]
[1768950257183,0.2,126.01,125.98,4.37987442]
[1768950257696,10.13910037,126.0,125.95,4.37987442]
[1768950258287,18.304944,126.01,125.96,4.37987442]
[1768950258488,10.13910037,125.99,125.94,14.51897479]
[1768950258789,10.16880034,125.99,125.94,4.37987442]
[1768950259187,18.07623823,125.99,125.95,4.37987442]
[1768950260179,0.02969997,125.95,125.89,4.37987442]
[1768950260384,10.13910037,125.94,125.9,4.37987442]
[1768950261090,10.13910037,125.93,125.9,4.37987442]
[1768950261278,10.13910037,125.94,125.9,4.37987442]
[1768950262301,10.16880034,125.93,125.88,4.37987442]
[1768950262478,10.16880034,125.92,125.87,4.37987442]
[1768950262869,27.7892637,125.95,125.89,4.37987442]
[1768950262870,27.53161409,125.94,125.89,4.37987442]
[1768950263296,25.34080446,125.94,125.9,4.37987442]
[1768950263484,35.47241855,125.94,125.9,4.37987442]
[1768950263995,10.16131406,125.93,125.88,4.37987442]
[1768950264176,10.13161409,125.93,125.88,4.37987442]
[1768950264372,18.10116883,125.95,125.89,14.51148851]
[1768950264576,17.4,125.94,125.9,4.37987442]
[1768950265000,0.02969997,125.9,125.84,21.77987442]
[1768950265291,10.13161409,125.92,125.87,4.37987442]
[1768950265497,31.18042606,125.95,125.89,4.37987442]
[1768950265498,10.13161409,125.94,125.89,4.37987442]
[1768950265681,27.53161409,125.94,125.89,4.37987442]
[1768950266499,35.47222932,125.94,125.89,4.37987442]
[1768950267495,10.13161409,125.92,125.87,4.37987442]
[1768950267699,10.13161409,125.91,125.87,4.37987442]
[1768950268275,0.02969997,125.92,125.87,4.37987442]
[1768950268474,10.13161409,125.91,125.87,4.37987442]
[1768950269187,18.07381503,125.91,125.87,4.37987442]
[1768950269571,27.53161409,125.93,125.88,4.37987442]
[1768950269771,17.4,125.93,125.89,4.37987442]
[1768950270684,18.07190311,125.94,125.89,4.37987442]
[1768950270870,5.34408856,125.95,125.9,4.37987442]
[1768950270871,35.47150661,125.95,125.9,4.37987442]
[1768950271288,25.33989252,125.95,125.91,4.37987442]
[1768950272003,35.47150661,125.95,125.91,4.37987442]
[1768950272776,25.33989252,125.95,125.91,4.37987442]
[1768950273094,7.93910977,125.96,125.92,4.37987442]
[1768950273300,7.93840931,125.97,125.93,4.37987442]
[1768950273678,25.33791791,125.98,125.94,4.37987442]
[1768950276297,35.469532,125.98,125.94,4.37987442]
[1768950277711,10.13161409,125.96,125.92,4.37987442]
[1768950277883,45.21203762,125.98,125.92,4.37987442]
[1768950277884,10.13161409,125.97,125.92,4.37987442]
[1768950278502,45.21203762,125.98,125.92,4.37987442]
[1768950278704,10.13161409,125.97,125.92,4.37987442]
[1768950279682,18.07064235,125.96,125.92,4.37987442]
[1768950279878,10.16131406,125.95,125.9,4.37987442]
[1768950280606,10.16131406,125.91,125.85,4.37987442]
[1768950280826,27.53161409,125.92,125.87,4.37987442]
[1768950280994,10.13161409,125.91,125.87,4.37987442]
[1768950281324,10.13161409,125.89,125.85,4.37987442]
[1768950281895,18.07513227,125.89,125.85,4.37987442]
[1768950283012,10.13161409,125.88,125.85,4.37987442]
[1768950283212,10.13161409,125.87,125.83,4.37987442]
[1768950283515,25.37321815,125.89,125.84,4.37987442]
[1768950283516,10.13161409,125.89,125.84,4.37987442]
[1768950283720,35.47442679,125.9,125.85,4.37987442]
[1768950284821,10.13161409,125.89,125.85,4.37987442]
[1768950285223,35.47442679,125.9,125.85,4.37987442]
[1768950285421,25.3428127,125.9,125.86,4.42800973]
[1768950286025,24.8428127,125.9,125.86,4.42800973]
[1768950286200,34.97442679,125.9,125.86,4.42800973]
[1768950289125,10.13161409,125.89,125.86,4.42800973]
[1768950289509,16.9,125.9,125.86,4.42800973]
[1768950290226,24.84290695,125.9,125.86,4.42800973]
[1768950290625,10.13161409,125.92,125.87,4.42800973]
[1768950290924,35.47334726,125.92,125.87,4.42800973]
[1768950291435,35.47334726,125.92,125.88,4.42800973]
[1768950291436,25.34173317,125.92,125.88,4.42800973]
[1768950291603,35.47334726,125.92,125.88,4.42800973]
[1768950291799,11.30060176,125.95,125.89,4.42800973]
[1768950292005,19.84854811,125.96,125.89,4.42800973]
[1768950292006,37.27824808,125.96,125.9,4.42800973]
[1768950292221,18.07127268,125.95,125.9,4.42800973]
[1768950292439,10.13161409,125.94,125.9,4.42800973]
[1768950293021,18.10097265,125.95,125.9,4.42800973]
[1768950293617,18.07127268,125.95,125.9,4.42800973]
[1768950297213,10.13161409,125.94,125.9,4.42800973]
[1768950297422,10.13161409,125.93,125.9,4.42800973]
[1768950297719,10.13161409,125.92,125.89,4.42800973]
[1768950297912,18.07303219,125.93,125.89,4.42800973]
[1768950298226,10.13161409,125.92,125.89,4.42800973]
[1768950298428,35.50273216,125.93,125.89,4.42800973]
[1768950298631,35.47208498,125.94,125.9,4.42800973]
[1768950298822,35.50178495,125.94,125.9,4.42800973]
[1768950299029,35.47208498,125.94,125.9,4.42800973]
[1768950299332,17.4,125.94,125.9,4.42800973]
[1768950300127,27.53161409,125.94,125.9,4.42800973]
[1768950300351,17.4,125.94,125.9,4.42800973]
[1768950300636,27.53161409,125.94,125.9,4.42800973]
[1768950300833,10.13161409,125.95,125.9,4.42800973]
[1768950301034,35.47064429,125.96,125.91,4.42800973]
[1768950301335,10.13161409,125.95,125.91,4.42800973]
[1768950301537,10.13161409,125.94,125.89,4.42800973]
[1768950301911,18.07201137,125.94,125.89,4.42800973]
[1768950302329,10.13161409,125.93,125.89,4.42800973]
[1768950302636,10.13161409,125.92,125.89,4.42800973]
[1768950302937,10.13161409,125.9,125.87,4.42800973]
[1768950303233,27.53161409,125.93,125.89,4.42800973]
[1768950303435,10.13161409,125.92,125.89,4.42800973]
[1768950304939,10.13161409,125.91,125.86,4.42800973]
[1768950305120,10.13161409,125.91,125.87,4.42800973]
[1768950305839,17.4,125.92,125.88,4.42800973]
[1768950306343,27.53161409,125.94,125.89,4.42800973]
[1768950306740,27.53161409,125.95,125.9,4.42800973]
[1768950307354,10.13161409,125.93,125.88,4.42800973]
[1768950307524,10.13161409,125.92,125.88,4.42800973]
[1768950308237,10.13161409,125.91,125.86,4.42800973]
[1768950308413,10.13161409,125.91,125.87,4.42800973]
[1768950309318,35.47318928,125.92,125.87,4.42800973]
[1768950309534,35.50288925,125.92,125.87,4.42800973]
[1768950309737,10.13161409,125.91,125.87,4.42800973]
[1768950309937,10.13161409,125.9,125.85,4.42800973]
[1768950310343,10.13161409,125.91,125.86,4.42800973]
[1768950310548,10.13161409,125.9,125.86,4.42800973]
[1768950311228,10.13161409,125.89,125.86,4.42800973]
[1768950311538,27.53161409,125.89,125.84,4.42800973]
[1768950311843,10.16131406,125.85,125.8,4.42800973]
[1768950312043,17.4,125.86,125.81,4.42800973]
[1768950312235,17.4,125.86,125.82,4.42800973]
[1768950312441,27.53161409,125.86,125.82,4.42800973]
[1768950312951,35.50666181,125.86,125.81,4.42800973]
[1768950313442,35.47696184,125.86,125.81,4.42800973]
[1768950314054,27.53161409,125.86,125.81,4.42800973]
[1768950314651,17.4,125.86,125.82,4.42800973]
[1768950314948,10.13161409,125.85,125.8,12.36389746]
[1768950315149,10.13161409,125.85,125.8,4.41505322]
[1768950316932,10.13161409,125.84,125.8,4.41505322]
[1768950317926,10.13161409,125.85,125.8,4.41505322]
[1768950318532,25.37509369,125.86,125.8,4.41505322]
[1768950318855,10.13161409,125.86,125.8,18.08073621]
[1768950319154,10.13161409,125.86,125.79,0.1]
[1768950319155,10.13161409,125.82,125.79,0.1]
[1768950319331,17.4,125.83,125.79,0.1]
[1768950319529,11.15131406,125.83,125.79,0.1]
[1768950319762,11.15131406,125.82,125.79,0.1]
[1768950320438,10.13161409,125.8,125.76,0.1]
[1768950320628,10.13161409,125.8,125.76,4.51505322]
[1768950321034,18.08083288,125.8,125.76,4.51505322]
[1768950321549,10.13161409,125.79,125.76,4.51505322]
[1768950321935,10.13161409,125.8,125.76,4.51505322]
[1768950322136,27.53161409,125.81,125.76,4.51505322]
[1768950322340,7.94746692,125.83,125.77,4.41505322]
[1768950322533,10.13161409,125.81,125.77,4.41505322]
[1768950322855,27.53161409,125.82,125.77,4.41505322]
[1768950323047,27.55044685,125.82,125.77,4.41505322]
[1768950323354,1.01969997,125.86,125.78,4.41505322]
[1768950323556,10.15044685,125.84,125.8,4.41505322]
[1768950325150,27.55044685,125.85,125.81,4.41505322]
[1768950325352,17.4,125.85,125.81,4.41505322]
[1768950325530,10.15044685,125.86,125.81,4.41505322]
[1768950325727,27.57044685,125.87,125.82,4.41505322]
[1768950325930,10.15044685,125.88,125.82,10.15044685]
[1768950326132,10.15044685,125.9,125.85,4.41505322]
[1768950326847,10.15044685,125.91,125.86,4.41505322]
[1768950327047,10.15044685,125.92,125.87,4.41505322]
[1768950327354,27.57044685,125.94,125.88,4.41505322]
[1768950327542,10.15044685,125.94,125.89,4.41505322]
[1768950328145,28.59014682,125.95,125.9,4.41505322]
[1768950328343,23.76378853,125.95,125.9,4.41505322]
[1768950328654,10.15044685,125.94,125.9,4.41505322]
[1768950328844,28.57014682,125.95,125.9,4.41505322]
[1768950329949,28.57014682,125.95,125.88,7.94395343]
[1768950329950,10.15044685,125.93,125.88,4.41505322]
[1768950330148,10.15044685,125.91,125.86,4.41505322]
[1768950330455,1.01969997,125.94,125.87,4.41505322]
[1768950330655,1.01969997,125.94,125.88,4.41505322]
[1768950330656,10.15044685,125.94,125.88,4.41505322]
[1768950330836,28.57014682,125.94,125.88,4.41505322]
[1768950331035,10.15044685,125.95,125.9,4.41505322]
[1768950331236,11.17014682,125.95,125.9,4.41505322]
[1768950331444,10.15044685,125.94,125.9,4.41505322]
[1768950331837,11.17014682,125.95,125.9,4.41505322]
[1768950332341,10.15044685,125.94,125.9,4.41505322]
[1768950332554,7.93865521,125.97,125.9,4.41505322]
[1768950332754,10.15044685,125.97,125.92,4.41505322]
[1768950332932,11.17014682,125.98,125.93,4.41505322]
[1768950333552,11.17014682,125.98,125.93,4.38505323]
[1768950334071,11.19984681,125.98,125.93,4.38505323]
[1768950335152,10.15044685,125.97,125.93,4.38505323]
[1768950335665,11.19984681,125.98,125.93,4.38505323]
[1768950335867,10.15044685,125.97,125.93,4.38505323]
[1768950336586,11.19984681,125.94,125.88,4.41505322]
[1768950336888,11.19984681,125.94,125.77,53.13809703]
[1768950336889,1.04939996,125.9,125.85,4.41505322]
[1768950337048,11.19984681,125.9,125.85,4.41505322]
[1768950337250,10.15044685,125.9,125.85,4.41505322]
[1768950338167,10.15044685,125.9,125.84,10.15044685]
[1768950338559,4.23226808,125.91,125.84,10.15044685]
[1768950338763,10.15044685,125.9,125.84,10.15044685]
[1768950338977,4.23226808,125.91,125.84,10.15044685]
[1768950339170,10.15044685,125.9,125.84,18.09677022]
[1768950339369,7.94114082,125.93,125.85,4.41505322]
[1768950339574,10.15044685,125.9,125.85,4.41505322]
[1768950340554,10.15044685,125.9,125.86,4.41505322]
[1768950341961,10.15044685,125.89,125.86,4.41505322]
[1768950342178,19.8540673,125.92,125.86,4.41505322]
[1768950342179,10.15044685,125.88,125.86,4.41505322]
[1768950342558,9.17316899,125.9,125.86,4.41505322]
[1768950342559,10.15044685,125.89,125.86,4.41505322]
[1768950342755,7.94233382,125.91,125.86,4.41505322]
[1768950343061,10.15044685,125.9,125.86,4.41505322]
[1768950346685,10.15044685,125.88,125.84,4.2651137]
[1768950346985,10.15044685,125.87,125.83,4.2651137]
[1768950347958,1.23035724,125.88,125.82,4.2651137]
[1768950348158,10.15044685,125.87,125.82,4.2651137]
[1768950348378,1.23035724,125.88,125.82,4.2651137]
[1768950348574,10.15044685,125.88,125.83,4.2651137]
[1768950349681,10.15044685,125.87,125.83,4.2651137]
[1768950349885,9.17463462,125.88,125.81,10.15044685]
[1768950349886,11.38080409,125.85,125.81,4.2651137]
[1768950350265,10.15044685,125.85,125.81,4.2651137]
[1768950350460,10.15044685,125.84,125.8,17.4]
[1768950350678,10.15044685,125.84,125.8,21.6651137]
[1768950350880,10.15044685,125.84,125.81,4.2651137]
[1768950352288,10.15044685,125.85,125.81,4.2651137]
[1768950355862,10.15044685,125.86,125.82,4.2651137]
[1768950356085,10.15044685,125.85,125.82,4.2651137]
[1768950357190,10.15044685,125.84,125.82,4.2651137]
[1768950357394,10.15044685,125.84,125.8,4.2651137]
[1768950357597,11.38080409,125.84,125.8,4.2651137]
[1768950358184,10.15044685,125.84,125.8,4.2651137]
[1768950358387,11.38080409,125.85,125.8,4.2651137]
[1768950358696,10.15044685,125.86,125.81,4.2651137]
[1768950358899,10.15044685,125.87,125.82,4.2651137]
[1768950359096,10.15044685,125.86,125.82,4.2651137]
[1768950359682,10.15044685,125.84,125.8,4.2651137]
[1768950360083,10.15044685,125.85,125.8,4.2651137]
[1768950360594,10.15044685,125.86,125.81,4.2651137]
[1768950360996,10.15044685,125.86,125.81,14.41556055]
[1768950361209,10.15044685,125.89,125.84,4.2651137]
[1768950361889,10.15044685,125.88,125.84,4.2651137]
[1768950362879,10.15044685,125.89,125.85,4.2651137]
[1768950363104,10.15044685,125.9,125.85,4.2651137]
[1768950363601,9.17151427,125.93,125.88,4.2651137]
[1768950363803,19.32196112,125.93,125.88,4.2651137]
[1768950364108,11.38080409,125.94,125.89,4.2651137]
[1768950364308,11.38080409,125.95,125.9,4.2651137]
[1768950364978,10.15044685,125.94,125.9,4.2651137]
[1768950366094,10.15044685,125.95,125.9,4.2651137]
[1768950366295,10.15044685,125.96,125.91,4.2651137]
[1768950366608,10.15044685,125.95,125.91,4.2651137]
[1768950366982,10.15044685,125.94,125.91,4.2651137]
[1768950367202,10.15044685,125.94,125.89,4.2651137]
[1768950367427,10.15044685,125.93,125.88,4.2651137]
[1768950367714,10.15044685,125.93,125.87,14.41556055]
[1768950367880,1.23035724,125.92,125.88,4.2651137]
[1768950368405,11.38080409,125.92,125.87,4.2651137]
[1768950368703,10.15044685,125.91,125.87,4.2651137]
[1768950368911,1.23035724,125.93,125.88,4.2651137]
[1768950369105,11.38080409,125.93,125.88,4.2651137]
[1768950369427,36.72164847,125.94,125.89,5.25e-06]
[1768950369593,11.38080409,125.94,125.89,5.25e-06]
[1768950371400,19.32118634,125.94,125.89,5.25e-06]
[1768950371805,11.38080409,125.94,125.89,5.25e-06]
[1768950372006,4.38151994,125.93,125.89,5.25e-06]
[1768950372385,14.53196679,125.94,125.89,5.25e-06]
[1768950372797,14.53196679,125.96,125.91,4.2651137]
[1768950372996,10.15044685,125.96,125.92,4.2651137]
[1768950373713,18.08951738,125.96,125.92,4.2651137]
[1768950373898,10.15044685,125.96,125.92,4.2651137]
[1768950374212,14.53196679,125.96,125.92,4.2651137]
[1768950374810,14.53196679,125.97,125.92,4.2651137]
[1768950374989,22.47041035,125.97,125.92,4.2651137]
[1768950375193,14.53196679,125.97,125.92,4.2651137]
[1768950376089,14.31861612,125.96,125.92,4.2651137]
[1768950376814,4.16816927,125.97,125.92,4.2651137]
[1768950377016,14.31861612,125.97,125.92,4.2651137]
[1768950377990,14.31861612,125.96,125.92,4.2651137]
[1768950378301,14.31861612,125.96,125.91,4.45629628]
[1768950378302,4.16816927,125.96,125.91,4.45629628]
[1768950378506,14.31861612,125.99,125.94,4.45629628]
[1768950378712,4.16816927,126.0,125.95,4.45629628]
[1768950378907,10.35044685,126.01,125.96,4.45629628]
[1768950379210,10.15044685,126.0,125.96,4.45629628]
[1768950379798,14.31861612,126.0,125.96,4.45629628]
[1768950380408,10.35044685,126.01,125.96,4.45629628]
[1768950380604,0.2,126.01,125.97,4.45629628]
[1768950380820,0.2,126.01,125.98,4.45629628]
[1768950381013,4.16816927,126.06,125.99,4.45629628]
[1768950381218,10.15044685,126.05,126.0,4.45629628]
[1768950381407,14.31861612,126.05,126.0,4.45629628]
[1768950382216,14.31861612,126.03,125.98,4.45629628]
[1768950382620,12.1018736,126.05,125.98,4.45629628]
[1768950382798,14.31861612,126.04,125.99,4.45629628]
[1768950383002,4.16816927,126.07,126.02,4.45629628]
[1768950383320,14.31861612,126.07,126.02,4.45629628]
[1768950383494,10.35044685,126.08,126.02,4.45629628]
[1768950383696,0.2,126.08,126.04,4.45629628]
[1768950384802,0.2,126.08,126.05,4.45629628]
[1768950385002,0.2,126.08,126.06,4.45629628]
[1768950386323,0.2,126.1,126.08,4.45629628]
[1768950386903,0.2,126.11,126.08,4.45629628]
[1768950387323,4.16816927,126.15,126.09,4.45629628]
[1768950387517,14.27236025,126.16,126.1,4.45629628]
[1768950387717,10.10419098,126.17,126.12,4.45629628]
[1768950387903,14.27236025,126.18,126.12,4.45629628]
[1768950388106,14.27236025,126.17,126.12,4.45629628]
[1768950389502,14.27236025,126.16,126.12,4.45629628]
[1768950390234,14.27236025,126.15,126.1,4.45629628]
[1768950391205,4.16816927,126.15,126.1,4.45629628]
[1768950391418,10.10419098,126.18,126.12,4.45629628]
[1768950391725,4.16816927,126.18,126.13,4.45629628]
[1768950391903,14.27236025,126.18,126.13,4.45629628]
[1768950392225,4.16816927,126.18,126.13,4.45629628]
[1768950392423,14.27236025,126.17,126.13,4.45629628]
[1768950392613,4.16816927,126.16,126.11,4.45629628]
[1768950392931,14.27236025,126.16,126.11,4.45629628]
[1768950393632,14.27236025,126.17,126.12,4.45629628]
[1768950393810,4.16816927,126.16,126.12,4.45629628]
[1768950394531,14.27236025,126.16,126.11,4.45629628]
[1768950394833,4.16816927,126.15,126.11,4.45629628]
[1768950395526,22.19884995,126.16,126.11,4.45629628]
[1768950396209,4.16816927,126.15,126.11,4.45629628]
[1768950396410,18.03068068,126.16,126.07,4.45629628]
[1768950396411,4.16816927,126.12,126.07,4.45629628]
[1768950396630,4.16816927,126.11,126.07,4.45629628]
[1768950396817,4.16816927,126.13,126.09,4.45629628]
[1768950398624,4.16816927,126.13,126.07,18.03613308]
[1768950398625,4.16816927,126.12,126.07,4.45629628]
[1768950399010,10.10419098,126.11,126.07,4.45629628]
[1768950400133,12.09638622,126.14,126.07,4.45629628]
[1768950400318,39.5805772,126.14,126.08,4.45629628]
[1768950400528,14.27236025,126.14,126.08,4.45629628]
[1768950400835,4.16816927,126.14,126.1,4.45629628]
[1768950401036,5.34408856,126.17,126.1,4.45629628]
[1768950401239,4.16816927,126.15,126.11,4.45629628]
[1768950401441,4.16816927,126.15,126.11,34.45629628]
[1768950401618,14.27236025,126.16,126.11,34.45629628]
[1768950401817,14.27236025,126.15,126.11,34.45629628]
[1768950402033,14.27236025,126.13,126.11,30.0]
[1768950402238,14.27236025,126.12,126.11,30.0]
[1768950402927,14.27236025,126.11,126.06,4.45629628]
[1768950403230,10.10419098,126.09,126.06,4.45629628]
[1768950403433,10.10419098,126.1,126.06,4.45629628]
[1768950403622,49.29951718,126.12,126.06,4.45629628]
[1768950403623,10.10419098,126.12,126.06,4.45629628]
[1768950404028,12.09610038,126.14,126.07,4.45629628]
[1768950404234,4.16816927,126.14,126.09,4.45629628]
[1768950404838,14.27236025,126.14,126.09,4.45629628]
[1768950405032,22.20022954,126.14,126.09,4.45629628]
[1768950405239,10.10419098,126.13,126.09,4.45629628]
[1768950406343,10.10419098,126.1,126.07,4.26503311]
[1768950407030,10.10419098,126.09,126.05,4.26503311]
[1768950407732,10.10419098,126.07,126.05,4.26503311]
[1768950407936,10.10419098,126.07,126.02,4.26503311]
[1768950408136,25.17020493,126.1,126.04,4.26503311]
[1768950408137,7.93043393,126.1,126.04,4.26503311]
[1768950408448,10.10419098,126.1,126.04,4.26503311]
[1768950408743,14.40276502,126.1,126.04,4.26503311]
[1768950408938,10.10419098,126.11,126.05,4.26503311]
[1768950409144,34.95185076,126.12,126.05,4.26503311]
[1768950409145,10.10419098,126.09,126.05,4.26503311]
[1768950409636,10.10419098,126.08,126.05,4.26503311]
[1768950410223,10.10419098,126.09,126.05,4.26503311]
[1768950410640,12.22845697,126.11,126.05,4.26503311]
[1768950410824,10.10419098,126.1,126.05,4.26503311]
[1768950411144,10.10419098,126.08,126.05,4.26503311]
[1768950411326,14.40276502,126.07,126.03,4.26503311]
[1768950411530,14.40276502,126.05,126.01,34.26503311]